[Event "Olaine Open Rapid 2018"]
[Site "Olaine"]
[Date "2018.11.25"]
[Round "3.5"]
[White "Bolsakovs, Vadims"]
[Black "Ramma, Kaspars"]
[Result "0-1"]
[WhiteElo "2164"]
[BlackElo "2107"]
[PlyCount "96"]
[EventDate "2018.11.24"]
[EventType "swiss"]
[EventCountry "LAT"]
[TimeControl "600+5"]
[WhiteClock "0:00:18"]
[BlackClock "0:00:07"]

1. d4 {[%emt 0:00:00]} d5 {[%emt 0:00:00]} 2. Nf3 {[%emt 0:00:01]} Nf6 {[%emt 0:00:00]} 3. c4 {[%emt 0:00:01]} c6 {[%emt 0:00:02]} 4. e3 {[%emt 0:00:03]} a6 {[%emt 0:00:05]} 5. Nc3 {[%emt 0:00:02]} Bf5 {[%emt 0:00:04]} 6. h3 {[%emt 0:00:42]} e6 {[%emt 0:00:25]} 7. Be2 {[%emt 0:01:38]} Nbd7 {[%emt 0:00:14]} 8. O-O {[%emt 0:00:17]} h6 {[%emt 0:00:15]} 9. b3 {[%emt 0:00:49]} Bd6 {[%emt 0:00:18]} 10. Bb2 {[%emt 0:00:20]} O-O {[%emt 0:00:20]} 11. Nh4 {[%emt 0:02:48]} Bh7 {[%emt 0:00:24]} 12. f4 {[%emt 0:00:12]} Ne4 {[%emt 0:00:33]} 13. Qe1 {[%emt 0:00:21]} Bb4 {[%emt 0:00:28]} 14. Nf3 {[%emt 0:00:40]} Qa5 {[%emt 0:00:30]} 15. Rc1 {[%emt 0:00:08]} Bxc3 {[%emt 0:00:35]} 16. Bxc3 {[%emt 0:00:01]} Nxc3 {[%emt 0:00:17]} 17. Qxc3 {[%emt 0:00:57]} Qxa2 {[%emt 0:01:03]} 18. Rf2 {[%emt 0:01:44]} Qa3 {[%emt 0:00:56]} 19. c5 {[%emt 0:00:33]} a5 {[%emt 0:00:13]} 20. Bd1 {[%emt 0:00:15]} Qb4 {[%emt 0:00:29]} 21. Ra2 {[%emt 0:00:01]} Qxc3 {[%emt 0:01:14]} 22. Rxc3 {[%emt 0:00:00]} Ra7 {[%emt 0:00:48]} 23. b4 {[%emt 0:00:16]} axb4 {[%emt 0:01:15]} 24. Rxa7 {[%emt 0:00:00]} bxc3 {[%emt 0:00:01]} 25. Rxb7 {[%emt 0:00:01]} Nf6 {[%emt 0:00:44]} 26. Ne5 {[%emt 0:00:10]} c2 {[%emt 0:00:19]} 27. Bxc2 {[%emt 0:00:01]} Bxc2 {[%emt 0:00:02]} 28. Nxc6 {[%emt 0:00:01]} Ra8 {[%emt 0:00:13]} 29. Ne5 {[%emt 0:00:10]} Be4 {[%emt 0:00:12]} 30. c6 {[%emt 0:00:08]} Ra1+ {[%emt 0:00:03]} 31. Kf2 {[%emt 0:00:04]} Ra2+ {[%emt 0:00:17]} 32. Ke1 {[%emt 0:00:01]} Rc2 {[%emt 0:00:06]} 33. c7 {[%emt 0:00:11]} Kh7 {[%emt 0:00:02]} 34. Nxf7 {[%emt 0:00:01]} Ne8 {[%emt 0:00:04]} 35. Ne5 {[%emt 0:00:12]} Rxc7 {[%emt 0:00:04]} 36. Rb6 {[%emt 0:00:01]} Nf6 {[%emt 0:00:09]} 37. g4 {[%emt 0:00:02]} Rc1+ {[%emt 0:00:05]} 38. Kd2 {[%emt 0:00:03]} Rc2+ {[%emt 0:00:01]} 39. Kd1 {[%emt 0:00:02]} Rh2 {[%emt 0:00:02]} 40. Rxe6 {[%emt 0:00:13]} Rxh3 {[%emt 0:00:03]} 41. Kd2 {[%emt 0:00:07]} Rg3 {[%emt 0:00:08]} 42. Re7 {[%emt 0:00:07]} Nxg4 {[%emt 0:00:07]} 43. Nd7 {[%emt 0:00:04]} Kg6 {[%emt 0:00:16]} 44. Nf8+ {[%emt 0:00:03]} Kh5 {[%emt 0:00:07]} 45. Rxg7 {[%emt 0:00:04]} Kh4 {[%emt 0:00:02]} 46. Ne6 {[%emt 0:00:08]} Nxe3 {[%emt 0:00:05]} 47. Rxg3 {[%emt 0:00:03]} Nc4+ {[%emt 0:00:01]} 48. Ke2 {[%emt 0:00:07]} Kxg3 {[%emt 0:00:01]} 0-1

[Event "Olaine Open Rapid 2018"]
[Site "Olaine"]
[Date "2018.11.25"]
[Round "3.6"]
[White "Lavendelis, Egons"]
[Black "Pavlovs, Sergejs"]
[Result "1-0"]
[WhiteElo "2290"]
[BlackElo "1978"]
[PlyCount "67"]
[EventDate "2018.11.24"]
[EventType "swiss"]
[EventCountry "LAT"]
[TimeControl "600+5"]
[WhiteClock "0:00:11"]
[BlackClock "0:00:21"]

1. e4 {[%emt 0:00:00]} d5 {[%emt 0:00:01]} 2. exd5 {[%emt 0:00:00]} Qxd5 {[%emt 0:00:04]} 3. Nc3 {[%emt 0:00:01]} Qa5 {[%emt 0:00:11]} 4. d4 {[%emt 0:00:13]} Nf6 {[%emt 0:00:02]} 5. Bc4 {[%emt 0:00:01]} c6 {[%emt 0:00:27]} 6. Nge2 {[%emt 0:00:03]} Bf5 {[%emt 0:00:27]} 7. O-O {[%emt 0:00:06]} e6 {[%emt 0:00:08]} 8. Ng3 {[%emt 0:00:02]} Bb4 {[%emt 0:02:23]} 9. Nxf5 {[%emt 0:00:07]} Qxf5 {[%emt 0:00:07]} 10. Ne2 {[%emt 0:00:16]} h5 {[%emt 0:00:39]} 11. Bd3 {[%emt 0:00:19]} Qa5 {[%emt 0:02:20]} 12. c4 {[%emt 0:00:13]} Be7 {[%emt 0:00:57]} 13. Bf4 {[%emt 0:00:18]} g5 {[%emt 0:00:23]} 14. Be5 {[%emt 0:01:24]} Nbd7 {[%emt 0:00:07]} 15. f4 {[%emt 0:00:02]} Rg8 {[%emt 0:01:13]} 16. a3 {[%emt 0:00:42]} Ng4 {[%emt 0:00:22]} 17. b4 {[%emt 0:00:22]} Qd8 {[%emt 0:00:01]} 18. Bh7 {[%emt 0:00:46]} Ndxe5 {[%emt 0:00:56]} 19. fxe5 {[%emt 0:01:16]} Rg7 {[%emt 0:00:11]} 20. Qd3 {[%emt 0:00:05]} Qd7 {[%emt 0:00:15]} 21. Be4 {[%emt 0:00:25]} O-O-O {[%emt 0:00:04]} 22. Rad1 {[%emt 0:00:49]} f5 {[%emt 0:00:08]} 23. exf6 {[%emt 0:00:22]} Nxf6 {[%emt 0:00:05]} 24. Nc3 {[%emt 0:00:18]} g4 {[%emt 0:00:11]} 25. Qe3 {[%emt 0:00:26]} Nxe4 {[%emt 0:00:08]} 26. Nxe4 {[%emt 0:00:09]} Rf8 {[%emt 0:00:04]} 27. Rxf8+ {[%emt 0:00:27]} Bxf8 {[%emt 0:00:01]} 28. Re1 {[%emt 0:01:29]} Rg6 {[%emt 0:00:02]} 29. Ng3 {[%emt 0:00:36]} Bg7 {[%emt 0:00:14]} 30. Ne2 {[%emt 0:00:02]} Qf7 {[%emt 0:00:12]} 31. d5 {[%emt 0:00:24]} exd5 {[%emt 0:00:03]} 32. cxd5 {[%emt 0:00:01]} Bh6 {[%emt 0:00:07]} 33. Qe5 {[%emt 0:00:26]} cxd5 {[%emt 0:00:01]} 34. Rf1 {[%emt 0:00:19]} 1-0

[Event "Olaine Open Rapid 2018"]
[Site "Olaine"]
[Date "2018.11.25"]
[Round "4.4"]
[White "Ramma, Kaspars"]
[Black "Dzjuba, Vsevolod"]
[Result "0-1"]
[WhiteElo "2107"]
[BlackElo "2238"]
[PlyCount "98"]
[EventDate "2018.11.24"]
[EventType "swiss"]
[EventCountry "LAT"]
[TimeControl "600+5"]
[WhiteClock "0:00:37"]
[BlackClock "0:00:31"]

1. d4 {[%emt 0:00:00]} Nf6 {[%emt 0:00:00]} 2. Bf4 {[%emt 0:00:02]} e6 {[%emt 0:00:04]} 3. e3 {[%emt 0:00:01]} c5 {[%emt 0:00:10]} 4. c3 {[%emt 0:00:05]} Nc6 {[%emt 0:00:13]} 5. Nd2 {[%emt 0:00:11]} d5 {[%emt 0:00:05]} 6. Ngf3 {[%emt 0:00:08]} Bd6 {[%emt 0:00:02]} 7. Bg3 {[%emt 0:00:09]} O-O {[%emt 0:00:07]} 8. Bd3 {[%emt 0:00:07]} b6 {[%emt 0:00:04]} 9. Ne5 {[%emt 0:00:17]} Bb7 {[%emt 0:00:02]} 10. f4 {[%emt 0:00:05]} Ne7 {[%emt 0:00:03]} 11. Qf3 {[%emt 0:00:49]} Nf5 {[%emt 0:00:02]} 12. Bf2 {[%emt 0:01:16]} Be7 {[%emt 0:00:02]} 13. g4 {[%emt 0:00:55]} Nd6 {[%emt 0:00:03]} 14. g5 {[%emt 0:00:15]} Nfe4 {[%emt 0:00:01]} 15. Ke2 {[%emt 0:00:38]} Rc8 {[%emt 0:02:56]} 16. Rhg1 {[%emt 0:00:45]} c4 {[%emt 0:00:03]} 17. Bc2 {[%emt 0:01:09]} b5 {[%emt 0:00:02]} 18. a3 {[%emt 0:00:01]} a5 {[%emt 0:00:01]} 19. Qh3 {[%emt 0:00:50]} b4 {[%emt 0:00:45]} 20. Nxe4 {[%emt 0:01:08]} dxe4 {[%emt 0:00:02]} 21. a4 {[%emt 0:00:42]} Bd5 {[%emt 0:00:20]} 22. Rg4 {[%emt 0:00:17]} Nf5 {[%emt 0:00:27]} 23. Qg2 {[%emt 0:00:08]} bxc3 {[%emt 0:00:10]} 24. bxc3 {[%emt 0:00:02]} Rb8 {[%emt 0:00:07]} 25. Qh1 {[%emt 0:00:27]} Rb2 {[%emt 0:01:50]} 26. Qc1 {[%emt 0:00:10]} Qb6 {[%emt 0:00:20]} 27. Kd1 {[%emt 0:01:05]} Rd8 {[%emt 0:00:44]} 28. Be1 {[%emt 0:00:05]} Bd6 {[%emt 0:01:08]} 29. Bd2 {[%emt 0:00:02]} Bxe5 {[%emt 0:00:04]} 30. fxe5 {[%emt 0:00:02]} Rb8 {[%emt 0:00:06]} 31. Ke2 {[%emt 0:00:08]} Qc6 {[%emt 0:00:29]} 32. Rg1 {[%emt 0:00:04]} Nh4 {[%emt 0:00:16]} 33. Be1 {[%emt 0:00:25]} Nf3 {[%emt 0:00:03]} 34. Rg2 {[%emt 0:00:05]} Qd7 {[%emt 0:01:21]} 35. Kf1 {[%emt 0:00:01]} Bc6 {[%emt 0:00:04]} 36. h4 {[%emt 0:00:11]} R2b3 {[%emt 0:00:08]} 37. Bxb3 {[%emt 0:00:08]} cxb3 {[%emt 0:00:01]} 38. c4 {[%emt 0:00:04]} Bxa4 {[%emt 0:00:11]} 39. Bxa5 {[%emt 0:00:01]} Bc6 {[%emt 0:00:10]} 40. Bc3 {[%emt 0:00:02]} Nxh4 {[%emt 0:00:05]} 41. Rg4 {[%emt 0:00:06]} Nf3 {[%emt 0:00:02]} 42. Qb2 {[%emt 0:00:04]} Qe7 {[%emt 0:00:11]} 43. Ra3 {[%emt 0:00:03]} Nxg5 {[%emt 0:00:09]} 44. Rxb3 {[%emt 0:00:02]} Rc8 {[%emt 0:00:04]} 45. Bb4 {[%emt 0:00:03]} Qd8 {[%emt 0:00:02]} 46. Bd6 {[%emt 0:00:02]} Nf3 {[%emt 0:00:03]} 47. Rb8 {[%emt 0:00:08]} Rxb8 {[%emt 0:00:01]} 48. Qxb8 {[%emt 0:00:01]} Qxb8 {[%emt 0:00:02]} 49. Bxb8 {[%emt 0:00:02]} Nh2+ {[%emt 0:00:03]} 0-1

[Event "Olaine Open Rapid 2018"]
[Site "Olaine"]
[Date "2018.11.25"]
[Round "4.5"]
[White "Mierins, Eriks"]
[Black "Lavendelis, Egons"]
[Result "0-1"]
[WhiteElo "2240"]
[BlackElo "2290"]
[PlyCount "76"]
[EventDate "2018.11.24"]
[EventType "swiss"]
[EventCountry "LAT"]
[TimeControl "600+5"]
[WhiteClock "0:01:29"]
[BlackClock "0:00:07"]

1. e4 {[%emt 0:00:00]} c5 {[%emt 0:00:00]} 2. Nf3 {[%emt 0:00:00]} Nc6 {[%emt 0:00:00]} 3. d4 {[%emt 0:00:00]} cxd4 {[%emt 0:00:00]} 4. Nxd4 {[%emt 0:00:00]} Nf6 {[%emt 0:00:00]} 5. Nc3 {[%emt 0:00:01]} e6 {[%emt 0:00:00]} 6. Be2 {[%emt 0:00:34]} Bb4 {[%emt 0:00:04]} 7. O-O {[%emt 0:00:06]} Bxc3 {[%emt 0:00:08]} 8. bxc3 {[%emt 0:00:02]} Nxe4 {[%emt 0:00:02]} 9. Bf3 {[%emt 0:01:37]} Nxc3 {[%emt 0:03:48]} 10. Qd3 {[%emt 0:00:26]} Nxd4 {[%emt 0:00:02]} 11. Qxd4 {[%emt 0:00:21]} Qf6 {[%emt 0:00:25]} 12. Qxf6 {[%emt 0:02:16]} gxf6 {[%emt 0:00:00]} 13. Bb2 {[%emt 0:00:03]} Na4 {[%emt 0:00:25]} 14. Bxf6 {[%emt 0:00:11]} Rg8 {[%emt 0:00:21]} 15. Be4 {[%emt 0:03:26]} h6 {[%emt 0:01:40]} 16. f3 {[%emt 0:00:08]} Nb6 {[%emt 0:01:03]} 17. Bh7 {[%emt 0:00:06]} Rg6 {[%emt 0:00:03]} 18. Bxg6 {[%emt 0:00:03]} fxg6 {[%emt 0:00:01]} 19. c4 {[%emt 0:00:17]} Nxc4 {[%emt 0:00:08]} 20. Rac1 {[%emt 0:00:20]} d5 {[%emt 0:00:03]} 21. g4 {[%emt 0:00:14]} Kf7 {[%emt 0:00:02]} 22. Bd4 {[%emt 0:00:05]} e5 {[%emt 0:01:15]} 23. Bc3 {[%emt 0:00:11]} Bd7 {[%emt 0:00:07]} 24. f4 {[%emt 0:00:23]} e4 {[%emt 0:00:01]} 25. h3 {[%emt 0:00:34]} h5 {[%emt 0:00:23]} 26. gxh5 {[%emt 0:00:20]} gxh5 {[%emt 0:00:02]} 27. Bd4 {[%emt 0:00:08]} Bxh3 {[%emt 0:00:14]} 28. Rf2 {[%emt 0:00:05]} Rg8+ {[%emt 0:00:08]} 29. Kh2 {[%emt 0:00:03]} Bg4 {[%emt 0:00:01]} 30. Bxa7 {[%emt 0:00:10]} e3 {[%emt 0:00:13]} 31. Rg2 {[%emt 0:00:12]} e2 {[%emt 0:00:01]} 32. Bf2 {[%emt 0:00:10]} Nd2 {[%emt 0:00:17]} 33. Rc7+ {[%emt 0:00:04]} Ke6 {[%emt 0:00:01]} 34. Rxb7 {[%emt 0:00:03]} e1=Q {[%emt 0:00:27]} 35. Bxe1 {[%emt 0:00:01]} Nf3+ {[%emt 0:00:01]} 36. Kg3 {[%emt 0:00:09]} Nxe1 {[%emt 0:00:01]} 37. Rgb2 {[%emt 0:00:39]} Bf5+ {[%emt 0:00:12]} 38. Kh2 {[%emt 0:00:00]} Nf3+ {[%emt 0:00:02]} 0-1

[Event "Olaine Open Rapid 2018"]
[Site "Olaine"]
[Date "2018.11.25"]
[Round "4.6"]
[White "Sinauridze, Simons"]
[Black "Berzinsh, Roland"]
[Result "0-1"]
[WhiteElo "2053"]
[BlackElo "2409"]
[PlyCount "34"]
[EventDate "2018.11.24"]
[EventType "swiss"]
[EventCountry "LAT"]
[TimeControl "600+5"]
[WhiteClock "0:06:32"]
[BlackClock "0:03:02"]

1. e4 {[%emt 0:00:00]} e5 {[%emt 0:00:00]} 2. Nf3 {[%emt 0:00:02]} Nc6 {[%emt 0:00:00]} 3. d4 {[%emt 0:00:04]} exd4 {[%emt 0:00:01]} 4. Nxd4 {[%emt 0:00:02]} Nf6 {[%emt 0:00:04]} 5. Nc3 {[%emt 0:00:02]} Bb4 {[%emt 0:00:01]} 6. Nxc6 {[%emt 0:00:05]} bxc6 {[%emt 0:00:02]} 7. Bd3 {[%emt 0:00:01]} d5 {[%emt 0:00:01]} 8. e5 {[%emt 0:00:19]} Ng4 {[%emt 0:00:31]} 9. O-O {[%emt 0:00:14]} O-O {[%emt 0:00:57]} 10. Bf4 {[%emt 0:00:23]} Re8 {[%emt 0:01:07]} 11. Qe2 {[%emt 0:02:15]} f6 {[%emt 0:00:36]} 12. e6 {[%emt 0:01:43]} Bxe6 {[%emt 0:00:04]} 13. Rae1 {[%emt 0:02:19]} Bd6 {[%emt 0:00:57]} 14. Bxd6 {[%emt 0:00:38]} Qxd6 {[%emt 0:00:02]} 15. f4 {[%emt 0:00:01]} Bd7 {[%emt 0:00:24]} 16. Qf3 {[%emt 0:00:06]} Qc5+ {[%emt 0:00:04]} 17. Kh1 {[%emt 0:00:09]} Rxe1 {[%emt 0:00:02]} 0-1

[Event "Olaine Open Rapid 2018"]
[Site "Olaine"]
[Date "2018.11.25"]
[Round "5.2"]
[White "Lavendelis, Egons"]
[Black "Levchenkov, Vitaly"]
[Result "1-0"]
[WhiteElo "2290"]
[BlackElo "2150"]
[PlyCount "97"]
[EventDate "2018.11.24"]
[EventType "swiss"]
[EventCountry "LAT"]
[TimeControl "600+5"]
[WhiteClock "0:00:20"]
[BlackClock "0:02:01"]

1. Nf3 {[%emt 0:00:00]} Nf6 {[%emt 0:00:00]} 2. g3 {[%emt 0:00:00]} g6 {[%emt 0:00:00]} 3. Bg2 {[%emt 0:00:00]} Bg7 {[%emt 0:00:00]} 4. O-O {[%emt 0:00:02]} O-O {[%emt 0:00:02]} 5. d4 {[%emt 0:00:02]} d5 {[%emt 0:00:02]} 6. Nbd2 {[%emt 0:00:08]} Ne4 {[%emt 0:00:05]} 7. e3 {[%emt 0:00:14]} c5 {[%emt 0:00:17]} 8. c3 {[%emt 0:00:02]} cxd4 {[%emt 0:01:16]} 9. Nxe4 {[%emt 0:00:29]} dxe4 {[%emt 0:00:02]} 10. Nxd4 {[%emt 0:00:02]} e5 {[%emt 0:00:19]} 11. Nb5 {[%emt 0:00:25]} Qb6 {[%emt 0:00:39]} 12. c4 {[%emt 0:00:12]} a6 {[%emt 0:00:31]} 13. Nc3 {[%emt 0:00:03]} f5 {[%emt 0:00:12]} 14. b3 {[%emt 0:00:16]} Rd8 {[%emt 0:00:41]} 15. Nd5 {[%emt 0:00:19]} Qc5 {[%emt 0:00:55]} 16. a4 {[%emt 0:00:57]} Nc6 {[%emt 0:01:55]} 17. Ba3 {[%emt 0:00:08]} Qa7 {[%emt 0:00:05]} 18. Qc2 {[%emt 0:03:05]} b6 {[%emt 0:01:03]} 19. Rad1 {[%emt 0:00:55]} Be6 {[%emt 0:00:04]} 20. Rd2 {[%emt 0:00:08]} Rd7 {[%emt 0:00:10]} 21. Rfd1 {[%emt 0:00:08]} Rad8 {[%emt 0:00:03]} 22. Bf1 {[%emt 0:00:06]} Qb7 {[%emt 0:00:35]} 23. h4 {[%emt 0:00:28]} h5 {[%emt 0:00:13]} 24. Be2 {[%emt 0:00:28]} Kh7 {[%emt 0:00:06]} 25. Kf1 {[%emt 0:00:31]} Kg8 {[%emt 0:00:01]} 26. Ke1 {[%emt 0:00:03]} Kh7 {[%emt 0:00:01]} 27. Nc3 {[%emt 0:00:05]} Nd4 {[%emt 0:00:54]} 28. Qb1 {[%emt 0:00:45]} Nf3+ {[%emt 0:00:20]} 29. Bxf3 {[%emt 0:00:03]} exf3 {[%emt 0:00:01]} 30. Rxd7 {[%emt 0:00:08]} Rxd7 {[%emt 0:00:01]} 31. Rxd7 {[%emt 0:00:05]} Qxd7 {[%emt 0:00:04]} 32. Qd1 {[%emt 0:00:01]} Qxd1+ {[%emt 0:00:43]} 33. Kxd1 {[%emt 0:00:01]} Kg8 {[%emt 0:00:41]} 34. Bd6 {[%emt 0:00:07]} e4 {[%emt 0:00:08]} 35. Kc2 {[%emt 0:00:14]} Bxc3 {[%emt 0:00:25]} 36. Kxc3 {[%emt 0:00:02]} Bd7 {[%emt 0:00:05]} 37. Bc7 {[%emt 0:00:52]} b5 {[%emt 0:00:02]} 38. cxb5 {[%emt 0:00:01]} axb5 {[%emt 0:00:02]} 39. a5 {[%emt 0:00:01]} Kf7 {[%emt 0:00:18]} 40. Kd4 {[%emt 0:00:00]} b4 {[%emt 0:00:05]} 41. Kc5 {[%emt 0:00:03]} Bc8 {[%emt 0:00:06]} 42. Kxb4 {[%emt 0:00:01]} Ke6 {[%emt 0:00:01]} 43. Kc5 {[%emt 0:00:01]} Kd7 {[%emt 0:00:01]} 44. Be5 {[%emt 0:00:05]} Bb7 {[%emt 0:00:09]} 45. b4 {[%emt 0:00:01]} Kc8 {[%emt 0:00:04]} 46. b5 {[%emt 0:00:01]} Kd7 {[%emt 0:00:05]} 47. a6 {[%emt 0:00:09]} Bc8 {[%emt 0:00:06]} 48. Kb6 {[%emt 0:00:05]} Kd8 {[%emt 0:00:02]} 49. a7 {[%emt 0:00:02]} 1-0

[Event "Olaine Open Rapid 2018"]
[Site "Olaine"]
[Date "2018.11.25"]
[Round "5.4"]
[White "Antoms, Guntars"]
[Black "Berzinsh, Roland"]
[Result "1-0"]
[WhiteElo "2340"]
[BlackElo "2409"]
[PlyCount "83"]
[EventDate "2018.11.24"]
[EventType "swiss"]
[EventCountry "LAT"]
[TimeControl "600+5"]
[WhiteClock "0:00:21"]
[BlackClock "0:01:01"]

1. c4 {[%emt 0:00:00]} e5 {[%emt 0:00:00]} 2. Nc3 {[%emt 0:00:00]} Nc6 {[%emt 0:00:06]} 3. e3 {[%emt 0:00:19]} Nf6 {[%emt 0:00:04]} 4. Nf3 {[%emt 0:00:03]} Bb4 {[%emt 0:00:08]} 5. Qc2 {[%emt 0:00:03]} O-O {[%emt 0:00:27]} 6. Nd5 {[%emt 0:00:47]} Re8 {[%emt 0:00:03]} 7. a3 {[%emt 0:00:18]} Bf8 {[%emt 0:00:09]} 8. Ng5 {[%emt 0:00:11]} g6 {[%emt 0:00:12]} 9. h4 {[%emt 0:00:07]} d6 {[%emt 0:00:41]} 10. b4 {[%emt 0:00:45]} Bf5 {[%emt 0:01:59]} 11. d3 {[%emt 0:00:28]} Bg7 {[%emt 0:01:16]} 12. Bb2 {[%emt 0:00:08]} Be6 {[%emt 0:00:36]} 13. Nxe6 {[%emt 0:01:00]} Rxe6 {[%emt 0:00:02]} 14. O-O-O {[%emt 0:00:20]} Ne7 {[%emt 0:01:02]} 15. Nxf6+ {[%emt 0:00:13]} Bxf6 {[%emt 0:00:02]} 16. h5 {[%emt 0:00:02]} d5 {[%emt 0:00:10]} 17. g4 {[%emt 0:01:36]} a5 {[%emt 0:00:04]} 18. hxg6 {[%emt 0:00:21]} hxg6 {[%emt 0:00:03]} 19. f4 {[%emt 0:00:24]} axb4 {[%emt 0:00:12]} 20. axb4 {[%emt 0:00:15]} exf4 {[%emt 0:00:15]} 21. g5 {[%emt 0:00:16]} Bxb2+ {[%emt 0:01:59]} 22. Qxb2 {[%emt 0:00:02]} d4 {[%emt 0:00:00]} 23. Qh2 {[%emt 0:00:51]} Kf8 {[%emt 0:00:02]} 24. Qh6+ {[%emt 0:00:44]} Ke8 {[%emt 0:00:01]} 25. Qh8+ {[%emt 0:00:00]} Kd7 {[%emt 0:00:01]} 26. Qxd4+ {[%emt 0:00:02]} Rd6 {[%emt 0:00:20]} 27. Bh3+ {[%emt 0:00:07]} Nf5 {[%emt 0:00:01]} 28. Bxf5+ {[%emt 0:00:20]} gxf5 {[%emt 0:00:01]} 29. Qxf4 {[%emt 0:00:03]} Ke7 {[%emt 0:00:54]} 30. Kb2 {[%emt 0:00:35]} Ra4 {[%emt 0:00:15]} 31. Kb3 {[%emt 0:00:43]} Qa8 {[%emt 0:01:06]} 32. Qe5+ {[%emt 0:00:07]} Kd7 {[%emt 0:00:15]} 33. Qxf5+ {[%emt 0:00:12]} Ke7 {[%emt 0:00:08]} 34. Qe5+ Kd7 35. Qb5+ {[%emt 0:00:10]} c6 {[%emt 0:00:01]} 36. Qf5+ {[%emt 0:00:11]} Kc7 {[%emt 0:00:08]} 37. Qxf7+ {[%emt 0:00:06]} Rd7 {[%emt 0:00:01]} 38. Qf4+ {[%emt 0:00:02]} Kb6 {[%emt 0:00:03]} 39. c5+ {[%emt 0:00:10]} Ka6 {[%emt 0:00:09]} 40. Kxa4 {[%emt 0:00:10]} b5+ {[%emt 0:00:06]} 41. cxb6 {[%emt 0:00:17]} Kxb6+ {[%emt 0:00:02]} 42. Kb3 {[%emt 0:00:01]} 1-0

[Event "Olaine Open Rapid 2018"]
[Site "Olaine"]
[Date "2018.11.25"]
[Round "5.5"]
[White "Gudovskis, Konstantins"]
[Black "Ramma, Kaspars"]
[Result "1/2-1/2"]
[WhiteElo "2032"]
[BlackElo "2107"]
[PlyCount "110"]
[EventDate "2018.11.24"]
[EventType "swiss"]
[EventCountry "LAT"]
[TimeControl "600+5"]
[WhiteClock "0:00:47"]
[BlackClock "0:00:34"]

1. d4 {[%emt 0:00:00]} d5 {[%emt 0:00:00]} 2. Nf3 {[%emt 0:00:01]} Nf6 {[%emt 0:00:00]} 3. c4 {[%emt 0:00:03]} c6 {[%emt 0:00:00]} 4. Nc3 {[%emt 0:00:03]} a6 {[%emt 0:00:01]} 5. c5 {[%emt 0:00:07]} Bf5 {[%emt 0:00:07]} 6. Bf4 {[%emt 0:00:05]} Nbd7 {[%emt 0:00:03]} 7. h3 {[%emt 0:00:21]} Ne4 {[%emt 0:00:30]} 8. e3 {[%emt 0:00:46]} e6 {[%emt 0:00:55]} 9. Bd3 {[%emt 0:00:17]} b5 {[%emt 0:01:16]} 10. O-O {[%emt 0:01:21]} Be7 {[%emt 0:01:20]} 11. Qc2 {[%emt 0:00:29]} Nxc3 {[%emt 0:01:21]} 12. bxc3 {[%emt 0:00:06]} Bxd3 {[%emt 0:00:09]} 13. Qxd3 {[%emt 0:00:02]} f5 {[%emt 0:00:14]} 14. Ne5 {[%emt 0:01:04]} Nxe5 {[%emt 0:00:14]} 15. Bxe5 {[%emt 0:00:02]} O-O {[%emt 0:00:19]} 16. a4 {[%emt 0:00:09]} Bf6 {[%emt 0:01:19]} 17. Bxf6 {[%emt 0:01:54]} Qxf6 {[%emt 0:00:03]} 18. f4 {[%emt 0:00:27]} g5 {[%emt 0:00:10]} 19. Ra2 {[%emt 0:00:02]} gxf4 {[%emt 0:00:37]} 20. exf4 {[%emt 0:00:13]} Qh6 {[%emt 0:00:45]} 21. Qf3 {[%emt 0:00:12]} Rac8 {[%emt 0:00:33]} 22. Re1 {[%emt 0:00:28]} Rf6 {[%emt 0:00:15]} 23. axb5 {[%emt 0:00:28]} axb5 {[%emt 0:00:01]} 24. Ra7 {[%emt 0:00:22]} Rf7 {[%emt 0:00:24]} 25. Qg3+ {[%emt 0:01:08]} Qg7 {[%emt 0:00:04]} 26. Qxg7+ {[%emt 0:00:23]} Kxg7 {[%emt 0:00:01]} 27. Rxf7+ {[%emt 0:00:14]} Kxf7 {[%emt 0:00:01]} 28. Ra1 {[%emt 0:00:02]} Rb8 {[%emt 0:00:10]} 29. Ra7+ {[%emt 0:00:06]} Kf6 {[%emt 0:00:07]} 30. Rc7 {[%emt 0:00:03]} b4 {[%emt 0:00:03]} 31. cxb4 {[%emt 0:01:00]} Rxb4 {[%emt 0:00:01]} 32. Kf2 {[%emt 0:00:12]} Rxd4 {[%emt 0:00:04]} 33. g3 {[%emt 0:00:01]} h5 {[%emt 0:00:08]} 34. Rxc6 {[%emt 0:00:03]} h4 {[%emt 0:00:02]} 35. Rc8 {[%emt 0:00:09]} Rc4 {[%emt 0:00:32]} 36. gxh4 {[%emt 0:00:20]} Rxf4+ {[%emt 0:00:05]} 37. Kg3 {[%emt 0:00:08]} Rc4 {[%emt 0:00:05]} 38. c6 {[%emt 0:00:09]} Ke7 {[%emt 0:00:10]} 39. h5 {[%emt 0:00:03]} f4+ {[%emt 0:00:15]} 40. Kg4 {[%emt 0:00:06]} f3+ {[%emt 0:00:24]} 41. Kxf3 {[%emt 0:00:09]} Rh4 {[%emt 0:00:01]} 42. c7 {[%emt 0:00:05]} Kd7 {[%emt 0:00:05]} 43. Re8 {[%emt 0:00:04]} Kxc7 {[%emt 0:00:04]} 44. Rxe6 {[%emt 0:00:04]} Rxh5 {[%emt 0:00:01]} 45. Kg4 {[%emt 0:00:06]} Rh7 {[%emt 0:00:02]} 46. h4 {[%emt 0:00:05]} Kd7 {[%emt 0:00:04]} 47. Re1 {[%emt 0:00:02]} Kd6 {[%emt 0:00:05]} 48. h5 {[%emt 0:00:03]} d4 {[%emt 0:00:03]} 49. Rd1 {[%emt 0:00:02]} Kd5 {[%emt 0:00:02]} 50. Kg5 {[%emt 0:00:01]} Kc4 {[%emt 0:00:04]} 51. h6 {[%emt 0:00:03]} d3 {[%emt 0:00:03]} 52. Kg6 {[%emt 0:00:01]} Rh8 {[%emt 0:00:12]} 53. h7 {[%emt 0:00:02]} Kc3 {[%emt 0:00:08]} 54. Rxd3+ {[%emt 0:00:04]} Kxd3 {[%emt 0:00:01]} 55. Kg7 {[%emt 0:00:01]} Rxh7+ {[%emt 0:00:01]} 1/2-1/2

[Event "Olaine Open Rapid 2018"]
[Site "Olaine"]
[Date "2018.11.25"]
[Round "5.6"]
[White "Rogule, Laura"]
[Black "Mierins, Eriks"]
[Result "1-0"]
[WhiteElo "2263"]
[BlackElo "2240"]
[PlyCount "41"]
[EventDate "2018.11.24"]
[EventType "swiss"]
[EventCountry "LAT"]
[TimeControl "600+5"]
[WhiteClock "0:10:05"]
[BlackClock "0:03:25"]

1. e4 {[%emt 0:00:00]} e5 {[%emt 0:00:00]} 2. Nf3 {[%emt 0:00:00]} Nc6 {[%emt 0:00:00]} 3. Bc4 {[%emt 0:00:00]} Bc5 {[%emt 0:00:00]} 4. O-O {[%emt 0:00:12]} Nf6 {[%emt 0:00:00]} 5. d3 {[%emt 0:00:04]} O-O {[%emt 0:00:09]} 6. Be3 {[%emt 0:00:04]} Bxe3 {[%emt 0:00:05]} 7. fxe3 {[%emt 0:00:02]} d5 {[%emt 0:00:02]} 8. exd5 {[%emt 0:00:09]} Nxd5 {[%emt 0:00:01]} 9. Qe1 {[%emt 0:00:34]} Bg4 {[%emt 0:00:09]} 10. Nbd2 {[%emt 0:00:17]} Na5 {[%emt 0:00:16]} 11. Nxe5 {[%emt 0:00:23]} Nxc4 {[%emt 0:00:02]} 12. dxc4 {[%emt 0:00:43]} Nf6 {[%emt 0:00:12]} 13. Rxf6 {[%emt 0:00:11]} Qxf6 {[%emt 0:00:01]} 14. Nxg4 {[%emt 0:00:03]} Qxb2 {[%emt 0:00:02]} 15. Nf3 {[%emt 0:01:58]} Qxc2 {[%emt 0:00:07]} 16. Qh4 {[%emt 0:01:12]} Rad8 {[%emt 0:00:08]} 17. Nd4 {[%emt 0:01:26]} Qxc4 {[%emt 0:00:03]} 18. Rf1 {[%emt 0:00:33]} c5 {[%emt 0:00:07]} 19. Nf5 {[%emt 0:00:14]} Qe2 {[%emt 0:00:06]} 20. Nf6+ {[%emt 0:00:14]} gxf6 {[%emt 0:00:05]} 21. Qg3+ {[%emt 0:00:01]} 1-0